Cogmind - Beta 12 @@@ ROGUE MODE // 2024.01.22 @ 22:45:13 Player: Dosh Result: Destroyed by as-62103 with Assembled P-sword Performance ------------- Evolutions (3) 1500 Regions Visited (11) 2200 Robots Destroyed (101) 505 Value Destroyed (4064) 4064 Prototype IDs (31) 620 Alien Tech Used (0) 0 Bonus (3524) 3524 TOTAL SCORE: 12413 Bonus ------- High Alert Combat Kills 463 Follower Combat Kills 887 Entered Garrisons 200 Aligned with FarCom 300 Destroyed Z-Imprinter 1000 Triggered Deep Caves Wall 500 Exposed GOLEM Chamber 500 Friendly Fire -326 Cogmind --------- Core Integrity 0/700 Matter 94/300 Energy 20/100 System Corruption 0% Temperature Cool (0) Movement Core (1450) Ox28 Location -7/Deep Caves Parts ------- > --- POWER (1) -------- (None) > --- PROPULSION (4) --- Assembled Alloy Leg > --- UTILITY (6) ------ Huge Storage Unit System Restoration Module GOLEM Unit > --- WEAPON (2) ------- Great Maul > --- INVENTORY (25) --- Zionite Light DM Reactor Zionite Biocell (600) Zionite Biocell (600) Faulty Experimental Sensor Array Encrypted Comm Array Weapon Cycler Cloak of Protection System Shield Component Analysis Suite Improved Trap Extractor (3/6 Dirty Bomb) GOLEM Unit GOLEM Unit Improved EM Pulse Cannon Long-range Proton Cannon Peak State ------------ > --- POWER ------------ Enhanced Nuclear Core > --- PROPULSION ------- Armored Huge Wheel Armored Huge Wheel > --- UTILITY ---------- Experimental Heat Sink Huge Storage Unit Core Analyzer Zionite Weapon Casing Zionite Heavy Carapace > --- WEAPON ----------- Long-range Proton Cannon Magnetic Acceleration Cannon > --- INVENTORY -------- Zionite Light DM Reactor Armored Huge Wheel Zionite Biocell Zionite Biocell Experimental Sensor Array Encrypted Comm Array Weapon Cycler Cloak of Protection Zionite Heavy Carapace Medium Reactive Plating Medium Reactive Plating Medium Reactive Plating Reflective Plating System Shield Component Analysis Suite System Restoration Module Improved Trap Extractor Improved EM Pulse Cannon Improved EM Pulse Cannon Magnetic Acceleration Cannon Heavy Rocket Launcher Heavy Rocket Launcher Great Maul [Rating: 74] Favorites ----------- Power Enhanced Nuclear Core Engine Deuterium Engine Power Core Enhanced Nuclear Core Propulsion Armored Huge Wheel Treads Light Treads Leg Assembled Alloy Leg Wheel Armored Huge Wheel Utility Huge Storage Unit Device Improved Cooling System Storage Huge Storage Unit Processor Core Analyzer Hackware Hacking Suite Protection Medium Reactive Plating Weapon Magnetic Acceleration Cannon Energy Gun Particle Gun Energy Cannon Improved EM Pulse Cannon Ballistic Gun Assault Rifle Ballistic Cannon Magnetic Acceleration Cannon Launcher Heavy Rocket Launcher Impact Weapon Mace Build | -11 -10 -10 -10 -9 -8 -8 -7 -7 -7 -7 -7 ------- Run | Jun Mat Min Exi Min Mat Gar Fac Low Low Zio Dee Slots Evolved 6 | . . . . . 4 . 2 . . . . Power . | . . . . . . . . . . . . Propulsion 2 | . . . . . 2 . . . . . . Utility 4 | . . . . . 2 . 2 . . . . Weapon . | . . . . . . . . . . . . Parts Attached 124 | 6 9 . 2 1 38 7 21 5 . 3 32 Power 5 | 1 1 . . . 2 . 1 . . . . Engine 4 | 1 1 . . . 2 . . . . . . Core 1 | . . . . . . . 1 . . . . Reactor . | . . . . . . . . . . . . Propulsion 17 | 2 2 . . . 8 . 3 . . . 2 Treads 4 | 2 2 . . . . . . . . . . Leg . | . . . . . . . . . . . . Wheel 13 | . . . . . 8 . 3 . . . 2 Hover . | . . . . . . . . . . . . Flight . | . . . . . . . . . . . . Utility 57 | 1 3 . 2 . 13 1 14 4 . 1 18 Device 16 | . . . . . 2 . 4 3 . 1 6 Storage 6 | 1 . . 1 . 3 . . . . . 1 Processor 1 | . . . . . . . . . . . 1 Hackware 1 | . . . . . . . 1 . . . . Protection 33 | . 3 . 1 . 8 1 9 1 . . 10 Artifact . | . . . . . . . . . . . . Weapon 45 | 2 3 . . 1 15 6 3 1 . 2 12 Energy Gun 5 | 1 2 . . . 2 . . . . . . Energy Cannon 17 | . . . . . 10 2 1 . . . 4 Ballistic Gun 5 | 1 1 . . . 2 1 . . . . . Ballistic Cannon 6 | . . . . . . . 2 . . 1 3 Launcher 8 | . . . . 1 . 2 . 1 . . 4 Special Weapon . | . . . . . . . . . . . . Impact Weapon 4 | . . . . . 1 1 . . . 1 1 Slashing Weapon . | . . . . . . . . . . . . Piercing Weapon . | . . . . . . . . . . . . Special Melee Weapon . | . . . . . . . . . . . . Unidentified Prototypes 6 | . . . . . . . 1 1 . . 4 Parts Lost 35 | . 7 . . . 5 2 1 . . . 20 Power 2 | . . . . . 1 . . . . . 1 Propulsion 7 | . 1 . . . 3 . . . . . 3 Utility 16 | . 3 . . . . 1 1 . . . 11 Weapon 10 | . 3 . . . 1 1 . . . . 5 Highest Loss Streak 14 | . 1 . . . 5 1 1 . . . 14 To Critical Strikes . | . . . . . . . . . . . . Average Slot Usage (%) 83 | . 97 85 98 100 77 80 77 84 84 84 77 Engine 5 | . 14 14 14 14 8 9 . . . . . Core 3 | . . . . . . . 6 7 7 7 6 Treads 5 | . 27 28 28 28 . . . . . . . Wheel 12 | . . . . . 17 18 15 15 15 15 14 Device 6 | . . . . . 1 . 8 15 15 15 7 Storage 8 | . 14 14 14 14 9 9 7 7 7 7 7 Hackware 3 | . . . . . . . 6 7 7 7 2 Protection 17 | . 12 . 12 14 22 27 15 15 15 15 14 Energy Gun 2 | . 11 14 14 10 2 . . . . . . Energy Cannon 4 | . . . . . 9 11 4 . . . 4 Ballistic Gun 4 | . 15 14 14 14 4 3 . . . . . Ballistic Cannon 4 | . . . . . . . 10 8 7 6 6 Launcher 2 | . . . . 3 . 2 . 6 7 7 2 Naked Turns . | . . . . . . . . . . . . Heaviest Build 150 | 13 24 17 25 25 123 123 141 150 149 149 150 Greatest Support 60 | 40 40 40 40 40 60 56 56 56 56 56 56 Greatest Overweight (x) 4 | . . . . . 2 2 2 2 2 2 4 Average Overweight (x) 1 | . . . . . . 2 1 2 2 2 1 Largest Inventory Capacity 25 | 8 8 8 10 10 25 25 25 25 25 25 25 Average Capacity 20 | 6 8 8 8 10 16 25 25 25 25 25 25 Most Carried 25 | 1 7 7 8 8 22 22 25 25 25 25 25 Average Carried 18 | . 5 6 6 7 13 20 23 25 25 23 24 Final Capacity 25 | 8 8 8 10 10 25 25 25 25 25 25 25 Final Carried 25 | 1 5 7 7 8 21 22 25 25 25 24 16 Class Distribution -------------------- 71% | Mutant 28% | Commander-Mutant Dominant Class ---------------- Mutant | -10/Materials Mutant | -10/Mines Mutant | -10/Exiles Mutant | -9/Mines Mutant | -8/Materials Mutant | -8/Garrison Commander-Mutant | -7/Factory Commander-Mutant | -7/Lower Caves Mutant | -7/Lower Caves Mutant | -7/Zion Mutant | -7/Deep Caves Resources | -11 -10 -10 -10 -9 -8 -8 -7 -7 -7 -7 -7 ----------- Run | Jun Mat Min Exi Min Mat Gar Fac Low Low Zio Dee Matter Collected 2623 | 201 341 . . 33 507 185 555 198 49 22 532 Remotely . | . . . . . . . . . . . . Salvage Created 4255 | . 807 . . 29 599 1337 528 104 120 . 731 Parts 220 | . 48 . . 5 27 68 34 2 15 . 21 Haulers Intercepted 2 | . 2 . . . . . . . . . . Recyclers Shooed 3 | . . . . . 3 . . . . . . Parts Field Recycled . | . . . . . . . . . . . . Retrieved Matter . | . . . . . . . . . . . . Parts Self-Destructed 22 | . . . . . . . . 8 14 . . Prevented . | . . . . . . . . . . . . Kills | -11 -10 -10 -10 -9 -8 -8 -7 -7 -7 -7 -7 ------- Run | Jun Mat Min Exi Min Mat Gar Fac Low Low Zio Dee Combat Hostiles Destroyed 118 | . 13 . . 4 9 26 12 3 7 . 44 Melee 1 | . . . . . . . . . . . 1 Guns 17 | . 13 . . . 4 . . . . . . Cannons 43 | . . . . . 1 18 11 1 3 . 9 AOE 51 | . . . . 4 4 5 1 2 4 . 31 Classes Destroyed 16 | . 5 . . 1 2 3 1 1 . . 3 Worker 3 | . 3 . . . . . . . . . . Builder 3 | . . . . . 1 . 2 . . . . Hauler 2 | . 2 . . . . . . . . . . Recycler 5 | . 1 . . . 4 . . . . . . Minesweeper 1 | . . . . . . . . 1 . . . Watcher 4 | . 1 . . . 2 . 1 . . . . Swarmer 13 | . . . . 4 . . 3 . 6 . . Grunt 37 | . 13 . . . 7 11 3 3 . . . Brawler 3 | . . . . . . 2 1 . . . . Duelist 4 | . . . . . . 4 . . . . . Sentry 12 | . . . . . 2 7 3 . . . . Specialist 2 | . . . . . . 2 . . . . . Programmer 4 | . . . . . . . 3 . 1 . . Z-Light 5 | . . . . . . . . . . . 5 Assembled 36 | . . . . . . . . . . . 36 Golem 2 | . . . . . . . . . . . 2 Best Kill Streak 32 | . 3 . . 3 9 5 4 2 4 . 32 Combat Bots Only 32 | . 3 . . 3 6 5 2 2 4 . 32 Max Kills in Single Turn 21 | . 1 . . 3 3 2 2 2 4 . 21 Gunslinging . | . . . . . . . . . . . . Exploded 21 | . . . . 3 1 2 1 2 4 . 21 Melee 1 | . . . . . . . . . . . 1 Uniques/NPCs Destroyed 1 | . . . . . . . . . . . 1 Z-Imprinter (-7/Deep Caves) Combat | -11 -10 -10 -10 -9 -8 -8 -7 -7 -7 -7 -7 -------- Run | Jun Mat Min Exi Min Mat Gar Fac Low Low Zio Dee Damage Taken 8047 | . 1110 . . 72 853 766 817 39 99 . 4291 Core 1026 | . 157 . . 9 38 96 17 . 8 . 701 Absorbed by Shields 169 | . . . . . 72 . 11 9 38 . 39 Redirected to Shielding 278 | . . . . . . . . . . . 278 Regen/Repaired (Parts) 142 | . 95 . . . 47 . . . . . . Core Remaining (%) 69 | 100 . . . 33 . 75 . . . . . Volleys Fired 328 | . 87 . . 2 55 63 33 21 6 2 59 Largest 2 | . 2 . . 1 2 2 2 1 1 1 2 Hottest 150 | . 85 . . 30 150 138 122 53 53 53 150 Shots Fired 539 | . 160 . . 2 88 92 62 21 6 2 106 Gun 221 | . 160 . . . 56 5 . . . . . Cannon 291 | . . . . . 23 82 62 19 5 2 98 Launcher 27 | . . . . 2 9 5 . 2 1 . 8 Special . | . . . . . . . . . . . . Kinetic 280 | . 103 . . . 21 5 60 19 5 2 65 Thermal 87 | . 29 . . . 58 . . . . . . Explosive 27 | . . . . 2 9 5 . 2 1 . 8 Electromagnetic 145 | . 28 . . . . 82 2 . . . 33 Robot Hit Streak 13 | . 11 . . 3 6 9 5 3 3 3 13 Robot Miss Streak 7 | . 5 . . 1 5 3 3 6 1 1 7 Penetration Max . | . . . . . . . . . . . . Secondary Targets 2 | . 2 . . . . . . . . . . Max Gunslinging Chain 1 | . 1 . . . . . . . . . . Shots Hit Robots 290 | . 96 . . 1 51 52 31 9 4 1 45 Core Hits 235 | . 42 . . 4 39 28 21 6 8 1 86 Critical Kills . | . . . . . . . . . . . . Critical Parts Destroyed . | . . . . . . . . . . . . Critical Strikes 5 | . 1 . . . 2 . . . 1 . 1 Burn 2 | . . . . . 2 . . . . . . Blast 1 | . . . . . . . . . 1 . . Corrupt 2 | . 1 . . . . . . . . . 1 Melee Attacks 10 | . . . . . 5 1 . . . 1 3 Impact 10 | . . . . . 5 1 . . . 1 3 Slashing . | . . . . . . . . . . . . Piercing . | . . . . . . . . . . . . Sneak Attacks . | . . . . . . . . . . . . Combat Hostiles . | . . . . . . . . . . . . Follow-up Attacks . | . . . . . . . . . . . . Damage Inflicted 10927 | . 1197 . . 297 1614 1841 1322 504 417 21 3714 Guns 1764 | . 1174 . . . 536 54 . . . . . Cannons 4568 | . . . . . 310 1371 1273 209 125 21 1259 Explosions 4386 | . . . . 297 745 416 49 260 269 . 2350 Melee 126 | . . . . . 23 . . . . . 103 Ramming 83 | . 23 . . . . . . 35 23 . 2 Kinetic 3294 | . 694 . . . 213 54 1243 209 125 21 735 Thermal 1054 | . 241 . . . 633 50 49 . . . 81 Explosive 4206 | . . . . 297 745 366 . 260 269 . 2269 Electromagnetic 2164 | . 239 . . . . 1371 30 . . . 524 Impact 126 | . . . . . 23 . . . . . 103 Slashing . | . . . . . . . . . . . . Piercing . | . . . . . . . . . . . . Highest Corruption 1 | . . . . . . . 1 . . . . Average Corruption 1 | . . . . . . . 1 . . . . Corruption Purged 2 | . . . . . . . 2 . . . . Corruption Blocked . | . . . . . . . . . . . . Effects 1 | . . . . . . . 1 . . . . Message Errors 1 | . . . . . . . 1 . . . . Overload Shots . | . . . . . . . . . . . . Overflow Damage 314 | . . . . 28 2 25 19 65 23 . 152 Projectiles 95 | . . . . . 1 25 19 37 10 . 3 Explosions 177 | . . . . 28 . . . . . . 149 Melee 42 | . . . . . 1 . . 28 13 . . Knockbacks 17 | . 1 . . . . . 3 4 . 1 8 Impact 2 | . 1 . . . . . . . . . 1 Kinetic 15 | . . . . . . . 3 4 . 1 7 Secondary . | . . . . . . . . . . . . Self-Inflicted Damage 493 | . . . . 33 145 86 . 17 62 . 150 Shots 13 | . . . . 1 6 2 . . 1 . 3 Rammed 9 | . 5 . . 1 . . . 1 1 . 1 Targets Rammed 9 | . 5 . . 1 . . . 1 1 . 1 Kicked . | . . . . . . . . . . . . Crushed . | . . . . . . . . . . . . Highest Temperature 396 | . 396 . . . 360 357 11 366 . . 342 Average Temperature 114 | . 125 . . . 113 119 6 189 . . 79 Received Heat Transfer 2035 | . 630 . . . 347 288 90 12 . . 668 Effects 12 | . 4 . . . 2 6 . . . . . Shutdowns 2 | . 1 . . . . 1 . . . . . Energy Bleed 3 | . . . . . 1 2 . . . . . Interference 6 | . 2 . . . 1 3 . . . . . Damage (minor) 1 | . 1 . . . . . . . . . . Siege Activations . | . . . . . . . . . . . . Robots Corrupted 6 | . . . . . . 3 . . . . 3 Combat Hostiles 6 | . . . . . . 3 . . . . 3 Parts Fried 21 | . 1 . . . 1 14 . . . . 5 Impact Corruptions 3 | . . . . . 1 . . 1 1 . . Robots Melted . | . . . . . . . . . . . . Combat Hostiles . | . . . . . . . . . . . . Parts Melted 2 | . 1 . . . 1 . . . . . . Heat Transferred 1980 | . 535 . . . 1295 50 50 . . . 50 Parts Sabotaged . | . . . . . . . . . . . . Parts Stolen . | . . . . . . . . . . . . Parts Stripped . | . . . . . . . . . . . . Power Chain Reactions 3 | . . . . . . 1 1 . . . 1 Missiles Intercepted . | . . . . . . . . . . . . Alert | -11 -10 -10 -10 -9 -8 -8 -7 -7 -7 -7 -7 ------- Run | Jun Mat Min Exi Min Mat Gar Fac Low Low Zio Dee Peak Influence 1249 | . 227 36 . 218 282 1249 899 . . . . Initial 655 | . . 36 . . 84 9 655 . . . . Average 361 | . 92 36 . 32 93 736 552 . . . . Maximum Alert Level 4 | . 1 . . 1 1 4 3 . . . . Low Security (%) 51 | 100 97 100 . 96 83 17 3 . . . . Level 1 12 | . 2 . . 3 16 2 28 . . . . Level 2 13 | . . . . . . 21 35 . . . . Level 3 16 | . . . . . . 33 32 . . . . Level 4 6 | . . . . . . 25 . . . . . Level 5 . | . . . . . . . . . . . . High Security . | . . . . . . . . . . . . Max Security . | . . . . . . . . . . . . Squads Dispatched 16 | . 4 . . . 3 . 9 . . . . Investigation 6 | . 4 . . . 1 . 1 . . . . Extermination 3 | . . . . . . . 3 . . . . Reinforcement 3 | . . . . . 1 . 2 . . . . Assault . | . . . . . . . . . . . . Garrison 4 | . . . . . 1 . 3 . . . . Intercept . | . . . . . . . . . . . . Searches Triggered . | . . . . . . . . . . . . Construction Impeded 1 | . . . . . 1 . . . . . . Haulers Reinforced . | . . . . . . . . . . . . Active Scanning Responses . | . . . . . . . . . . . . Cargo Convoy Interrupts . | . . . . . . . . . . . . Stealth | -11 -10 -10 -10 -9 -8 -8 -7 -7 -7 -7 -7 --------- Run | Jun Mat Min Exi Min Mat Gar Fac Low Low Zio Dee Distress Signals 7 | . 1 . . . 2 . 4 . . . . Communications Jammed . | . . . . . . . . . . . . Distress Signals . | . . . . . . . . . . . . Times Spotted 198 | . 30 2 . 6 25 31 28 5 5 1 65 Peak Tracking Total 37 | . 6 2 . 3 5 4 5 3 4 1 37 Tactical Retreats 4 | . 1 . . . 2 . . . 1 . . Traps | -11 -10 -10 -10 -9 -8 -8 -7 -7 -7 -7 -7 ------- Run | Jun Mat Min Exi Min Mat Gar Fac Low Low Zio Dee Traps Triggered 20 | . 4 . . . 4 7 5 . . . . Indirectly . | . . . . . . . . . . . . Trap Hack Attempts . | . . . . . . . . . . . . Triggered . | . . . . . . . . . . . . Disarmed . | . . . . . . . . . . . . Reprogrammed . | . . . . . . . . . . . . Reused 1 | . . . . . . . . . . . 1 Traps Extracted 1 | . . . . . . . . 1 . . . Installed 3 | . . . . . . . . . . . 3 Triggered . | . . . . . . . . . . . . Most Traps Carried 6 | . . . . . . . . 6 6 6 6 Machines | -11 -10 -10 -10 -9 -8 -8 -7 -7 -7 -7 -7 ---------- Run | Jun Mat Min Exi Min Mat Gar Fac Low Low Zio Dee Machines Disabled 10 | . . . . . 1 2 4 . . . 3 Max in Single Turn 1 | . . . . . 1 1 1 . . . 1 Machines Repaired . | . . . . . . . . . . . . Machines Sabotaged . | . . . . . . . . . . . . Overloaded Fab Kills . | . . . . . . . . . . . . Hacking | -11 -10 -10 -10 -9 -8 -8 -7 -7 -7 -7 -7 --------- Run | Jun Mat Min Exi Min Mat Gar Fac Low Low Zio Dee Machines Accessed 32 | . 8 . 1 . 9 4 9 1 . . . Terminals 22 | . 5 . . . 7 4 5 1 . . . Fabricators 3 | . . . . . . . 3 . . . . Repair Stations 2 | . 1 . . . 1 . . . . . . Recycling Units 2 | . 2 . . . . . . . . . . Scanalyzers 1 | . . . . . . . 1 . . . . Garrison Access 1 | . . . . . 1 . . . . . . Total Hacks 77 | . 16 . 1 . 25 10 24 1 . . . Successful 47 | . 9 . 1 . 15 2 19 1 . . . Failed 30 | . 7 . . . 10 8 5 . . . . Catastrophic 7 | . 1 . . . 1 3 2 . . . . Database Lockouts . | . . . . . . . . . . . . Manual 42 | . 12 . 1 . 17 . 7 . . 5 . Terminals 55 | . 12 . . . 20 10 12 1 . . . Fabricators 6 | . . . . . . . 6 . . . . Repair Stations 4 | . 2 . . . 2 . . . . . . Recycling Units 2 | . 2 . . . . . . . . . . Scanalyzers 6 | . . . . . . . 6 . . . . Garrison Access 3 | . . . . . 3 . . . . . . Terminal Hacks 17 | . 3 . 1 . 5 2 5 1 . . . Record 1 | . . . . . . . . 1 . . . Robot Analysis 5 | . 2 . . . 2 . 1 . . . . Open Door 1 | . . . . . . 1 . . . . . Branch Access Points 1 | . . . . . . . 1 . . . . Terminal Index 1 | . 1 . . . . . . . . . . Alert Level 1 | . . . . . . . 1 . . . . Unreport Threat 4 | . . . . . 2 . 2 . . . . Hauler Manifests 1 | . . . . . 1 . . . . . . Garrison Registry 1 | . . . . . . 1 . . . . . EX-Prototype ID Bank 1 | . . . 1 . . . . . . . . Fabricator Hacks 5 | . . . . . . . 5 . . . . Network Status 2 | . . . . . . . 2 . . . . Load Schematic 1 | . . . . . . . 1 . . . . Build 2 | . . . . . . . 2 . . . . Repair Station Hacks 4 | . 2 . . . 2 . . . . . . Scan Component 2 | . 1 . . . 1 . . . . . . Repair 2 | . 1 . . . 1 . . . . . . Recycling Unit Hacks . | . . . . . . . . . . . . Scanalyzer 6 | . . . . . . . 6 . . . . Insert Component 2 | . . . . . . . 2 . . . . Analyze 4 | . . . . . . . 4 . . . . Garrison Access Hacks 1 | . . . . . 1 . . . . . . Unlock Access 1 | . . . . . 1 . . . . . . Unauthorized Hacks 14 | . 4 . . . 7 . 3 . . . . Terminals 10 | . 2 . . . 6 . 2 . . . . Botnet 8 | . 1 . . . 5 . 2 . . . . Operators 2 | . 1 . . . 1 . . . . . . Fabricators 1 | . . . . . . . 1 . . . . Prioritize 1 | . . . . . . . 1 . . . . Repair Stations . | . . . . . . . . . . . . Recycling Units 2 | . 2 . . . . . . . . . . Tunnel 2 | . 2 . . . . . . . . . . Scanalyzers . | . . . . . . . . . . . . Garrison Access 1 | . . . . . 1 . . . . . . Watchers 1 | . . . . . 1 . . . . . . Data Cores Recovered 1 | . . . . . 1 . . . . . . Used . | . . . . . . . . . . . . Hacking Detections 24 | . 5 . . . 9 3 7 . . . . Full Trace Events 5 | . 1 . . . 1 2 1 . . . . Feedback Events . | . . . . . . . . . . . . Feedback Blocked . | . . . . . . . . . . . . Robot Schematics Acquired 4 | . . . . . . . . . . 4 . Robots Built . | . . . . . . . . . . . . Authchips . | . . . . . . . . . . . . Time . | . . . . . . . . . . . . Total Robot Build Rating . | . . . . . . . . . . . . Part Schematics Acquired 16 | . . . . . . . 2 . . 14 . Parts Built 3 | . . . . . . . 3 . . . . Authchips . | . . . . . . . . . . . . Time 148 | . . . . . . . 148 . . . . Total Part Build Rating 14 | . . . . . . . 14 . . . . Parts Repaired 2 | . 1 . . . 1 . . . . . . Time 58 | . 26 . . . 32 . . . . . . Parts Recycled . | . . . . . . . . . . . . Recycled Matter . | . . . . . . . . . . . . Retrieved Matter . | . . . . . . . . . . . . Retrieved Components . | . . . . . . . . . . . . Parts Scanalyzed 2 | . . . . . . . 2 . . . . Part Schematics Acquired 2 | . . . . . . . 2 . . . . Parts Damaged 1 | . . . . . . . 1 . . . . Bothacking | -11 -10 -10 -10 -9 -8 -8 -7 -7 -7 -7 -7 ------------ Run | Jun Mat Min Exi Min Mat Gar Fac Low Low Zio Dee Used RIF Installer . | . . . . . . . . . . . . Robots Hacked . | . . . . . . . . . . . . Non-combat . | . . . . . . . . . . . . Combat . | . . . . . . . . . . . . Robot Hacks Applied . | . . . . . . . . . . . . Relay Couplers Released . | . . . . . . . . . . . . Fabnet Peak Effective % . | . . . . . . . . . . . . Robots Rewired 18 | . . . . . . 18 . . . . . Allies Hacked 1 | . . . . . . . 1 . . . . Hacks Repelled . | . . . . . . . . . . . . Allies | -11 -10 -10 -10 -9 -8 -8 -7 -7 -7 -7 -7 -------- Run | Jun Mat Min Exi Min Mat Gar Fac Low Low Zio Dee Total Allies 23 | . . . . 3 . 18 . . . 2 . Largest Group 12 | . . . . 3 3 12 11 4 3 5 5 Highest-Rated Group 231 | . . . . 40 40 179 165 54 39 231 231 Highest-Rated Ally 96 | . . . . 16 16 39 21 15 15 96 96 Total Orders 4 | . . . . . . 4 . . . . . STAY 3 | . . . . . . 3 . . . . . FOLLOW 1 | . . . . . . 1 . . . . . Ally Attacks 236 | . . . . 7 12 65 100 14 . 4 34 Total Damage 4016 | . . . . 54 94 1000 1770 244 . 38 816 Kills 37 | . . . . 3 1 13 16 2 . . 2 Allies Corrupted . | . . . . . . . . . . . . Allies Melted 2 | . . . . . . . . . 1 . 1 Intel | -11 -10 -10 -10 -9 -8 -8 -7 -7 -7 -7 -7 ------- Run | Jun Mat Min Exi Min Mat Gar Fac Low Low Zio Dee Robot Analysis Total 5 | . 2 . . . 2 . 1 . . . . Derelict Logs Recovered 9 | . . 1 . 2 . . . 2 2 2 . Drone Launches . | . . . . . . . . . . . . Drone Recoveries . | . . . . . . . . . . . . Exploration | -11 -10 -10 -10 -9 -8 -8 -7 -7 -7 -7 -7 ------------- Run | Jun Mat Min Exi Min Mat Gar Fac Low Low Zio Dee Turns Passed 12697 | 88 1399 199 520 385 1723 1915 1811 1173 961 1014 1509 Spaces Moved 8050 | 52 656 121 323 236 1171 1062 1167 837 701 762 962 Core 4 | 4 . . . . . . . . . . . Treads 1409 | 48 656 121 323 236 25 . . . . . . Legs . | . . . . . . . . . . . . Wheels 6637 | . . . . . 1146 1062 1167 837 701 762 962 Hover . | . . . . . . . . . . . . Flight . | . . . . . . . . . . . . Fastest Speed 50 | 50 160 160 160 160 90 130 115 130 130 130 115 Average Speed 131 | 151 160 160 160 160 113 130 129 130 130 130 123 Slowest Speed 160 | 160 160 160 160 160 160 130 130 130 130 130 160 Overloaded Moves . | . . . . . . . . . . . . Propulsion Burnouts . | . . . . . . . . . . . . Robots Hopped . | . . . . . . . . . . . . Cave-ins Triggered . | . . . . . . . . . . . . Exploration Rate (%) 64 | 5 98 36 70 60 68 72 33 89 84 83 76 Regions Visited 11 Branch Regions 7 Pre-discovered Areas 5 | . 2 . . 1 . . . 2 . . . Known Exits Taken 2 | . . . . . 1 . 1 . . . . Unknown Exits Taken 8 | 1 1 1 1 1 . . . 1 1 1 . Scrap Searched 9 | . . . . . . . . 4 2 3 . Spaces Dug 8 | . . . . . 1 1 4 . . . 2 Terrain Destroyed 240 | . . . . 19 42 67 15 28 19 1 49 Melee 2 | . . . . . 1 1 . . . . . Projectile 57 | . . . . . 8 . 11 10 1 1 26 AOE 181 | . . . . 19 33 66 4 18 18 . 23 Terrain Rammed . | . . . . . . . . . . . . Walls Destroyed . | . . . . . . . . . . . . Machines Disabled . | . . . . . . . . . . . . Actions | -11 -10 -10 -10 -9 -8 -8 -7 -7 -7 -7 -7 --------- Run | Jun Mat Min Exi Min Mat Gar Fac Low Low Zio Dee Total 9564 | 58 850 127 326 240 1468 1501 1402 898 745 781 1168 Wait 658 | . 83 5 . . 156 135 115 33 36 9 86 Move 8038 | 51 655 120 322 235 1170 1060 1166 836 700 761 962 Hop . | . . . . . . . . . . . . Pick Up 67 | 1 9 2 1 1 20 4 15 1 1 2 10 Fast Attach 46 | 6 4 . . . 22 . 9 . . . 5 Attach 33 | . 4 . 1 . 6 3 4 . . . 15 Detach 14 | . . . . . 5 . 5 . . . 4 Swap 45 | . 1 . 1 1 10 4 8 5 . 3 12 Drop 49 | . 2 . 1 . 19 . 14 1 1 3 8 Fire 328 | . 87 . . 2 55 63 33 21 6 2 59 Melee 10 | . . . . . 5 1 . . . 1 3 Ram 3 | . . . . . . . . 1 1 . 1 Kick . | . . . . . . . . . . . . Crush 6 | . 5 . . 1 . . . . . . . Escape Stasis 88 | . . . . . . 56 32 . . . . Rewire 176 | . . . . . . 175 1 . . . . Trap 3 | . . . . . . . . . . . 3 Miscellaneous . | . . . . . . . . . . . . Route ------- -11/Junkyard -10/Materials (discovered 5 exits: [*Mat x3] / [*Min x2]) -10/Mines -10/Exiles -9/Mines -8/Materials (discovered 3 exits: *Fac x2 / Gar) -8/Garrison (discovered 3 exits: *Fac x3) -7/Factory (discovered 2 exits: *Low x2) -7/Lower Caves -7/Lower Caves (discovered 2 exits: *Fac / *Zio) -7/Zion (discovered 2 exits: [*Dee] / [*Pro]) -7/Deep Caves (discovered 1 exit: [*Pro]) History --------- Turn | Location | Event 10 | -11/Junkyard | Discovered new exit (range 16) 89 | -11/Junkyard | Entered Materials 270 | -10/Materials | Discovered new exit (range 6) 318 | -10/Materials | Build established: Mutant 748 | -10/Materials | Discovered new exit (range 3) 901 | -10/Materials | Repaired Lgt. Treads 962 | -10/Materials | Core integrity fell below 50% 1051 | -10/Materials | Discovered new exit (range 8) 1223 | -10/Materials | Discovered new exit (range 16) 1410 | -10/Materials | Discovered new exit (range 8) 1488 | -10/Materials | Entered Mines 1489 | -10/Mines | Assembled infested the area 1533 | -10/Mines | Met 8R-AWN 1681 | -10/Mines | Discovered new exit (range 5) 1687 | -10/Mines | Entered Exiles 1727 | -10/Exiles | Welcomed by 8R-AWN 1756 | -10/Exiles | Met EX-HEX 1799 | -10/Exiles | Met EX-BIN 1821 | -10/Exiles | Aligned with FarCom system 1823 | -10/Exiles | Given EX-Vault access code 1863 | -10/Exiles | Opened EX-Vault 1877 | -10/Exiles | Found Cloak of Protection 1910 | -10/Exiles | Warned to stay clear of 0b10 Research branches 1958 | -10/Exiles | Met EX-DEC 2187 | -10/Exiles | Discovered new exit (range 14) 2207 | -10/Exiles | Left Exiles lab with Cloak of Protection 2207 | -10/Exiles | Entered Mines 2401 | -9/Mines | Assisted by bots powering up and referring to "LRC-V3" 2414 | -9/Mines | Learned location of Zion (-7) 2505 | -9/Mines | Found a damaged Exp. Sensor Array with a note attached 2509 | -9/Mines | Found Prototype Device 2587 | -9/Mines | Discovered new exit (range 3) 2592 | -9/Mines | Entered Materials 2592 | -8/Materials | Accompanied by 3 allies 2592 | -8/Materials | Evolved 4 slots: Propulsion x2, Utility x2 2675 | -8/Materials | Garrison activated, responded to threat 2734 | -8/Materials | Lost 5 parts (1p3n1w) 3150 | -8/Materials | Discovered new exit (range 8) 3359 | -8/Materials | Identified exit to Garrison 3978 | -8/Materials | Discovered new exit (range 3) 4290 | -8/Materials | Repaired Med. Armor Plating 4315 | -8/Materials | Entered Garrison 4356 | -8/Garrison | Triggered checkpoint 4402 | -8/Garrison | Triggered checkpoint 4682 | -8/Garrison | Triggered checkpoint 4682 | -8/Garrison | Triggered checkpoint 4868 | -8/Garrison | Discovered new exit (range 3) 4958 | -8/Garrison | Spotted B-75 Beast 4958 | -8/Garrison | Spotted B-75 Beast 5135 | -8/Garrison | Discovered new exit (range 12) 5143 | -8/Garrison | Discovered new exit (range 62) 5143 | -8/Garrison | Discovered new exit (range 45) 5143 | -8/Garrison | Discovered new exit (range 13) 5261 | -8/Garrison | Triggered checkpoint 5879 | -8/Garrison | Build established: Commander-Mutant 6042 | -8/Garrison | Attempted to access garrison exit controls, blocked by remote lockdown 6230 | -8/Garrison | Entered Factory 6230 | -7/Factory | Accompanied by 11 allies 6230 | -7/Factory | Evolved 2 slots: Utility x2 6858 | -7/Factory | Fabricated Lrn. Proton Cannon (x1) 7503 | -7/Factory | Garrison activated, responded to threat 7574 | -7/Factory | Identified exit to Lower Caves 7763 | -7/Factory | Fabricated Arm. Huge Wheel (x2) 8041 | -7/Factory | Entered Lower Caves 8041 | -7/Lower Caves | Accompanied by 4 allies 8041 | -7/Lower Caves | Identified Exp. Sensor Array 8047 | -7/Lower Caves | Met a Warlord Commander 8048 | -7/Lower Caves | Learned location of Warlord (-5) 8054 | -7/Lower Caves | Found Encrypted Comm Array 8072 | -7/Lower Caves | Spotted B-75 Beast 8256 | -7/Lower Caves | Learned location of Extension (-5) 8419 | -7/Lower Caves | Learned 4 Factory zone layouts 9089 | -7/Lower Caves | Discovered new exit (range 14) 9147 | -7/Lower Caves | Encountered a Warlord checkpoint 9214 | -7/Lower Caves | Entered another Lower Caves area 9214 | -7/Lower Caves | Accompanied by 3 allies 9307 | -7/Lower Caves | Identified exit to Factory 9425 | -7/Lower Caves | Learned Factory emergency access door positions 9427 | -7/Lower Caves | Build established: Mutant 9802 | -7/Lower Caves | Spotted B-75 Beast 10075 | -7/Lower Caves | Discovered new exit (range 12) 10175 | -7/Lower Caves | Entered Zion 10175 | -7/Zion | Accompanied by 3 allies 10266 | -7/Zion | Given A8's code to call for help 10290 | -7/Zion | Discovered new exit (range 12) 10322 | -7/Zion | Found Prototype Device 10375 | -7/Zion | Identified Bomb Factory No. 2 10708 | -7/Zion | Acquired unknown access codes intercepted by a Zionite 10970 | -7/Zion | Received a visual enhancement algorithm 11126 | -7/Zion | Opened final containment barrier to the Deep Caves 11147 | -7/Zion | Discovered new exit (range 3) 11147 | -7/Zion | Saw the warning signs outside the Deep Caves entrance 11175 | -7/Zion | Enhanced Grunt warped into view, answering call for help 11176 | -7/Zion | Enhanced Grunt warped into view, answering call for help 11189 | -7/Zion | Entered Deep Caves 11189 | -7/Deep Caves | Accompanied by 5 allies 11401 | -7/Deep Caves | Attacked by Z-Imprinter 11435 | -7/Deep Caves | Destroyed Z-Imprinter 11486 | -7/Deep Caves | Found Prototype Protection 11486 | -7/Deep Caves | Identified Zio. Weapon Casing 11569 | -7/Deep Caves | Z-Facility disabled 11762 | -7/Deep Caves | Found Prototype Protection 11762 | -7/Deep Caves | Identified Zio. Heavy Carapace 11791 | -7/Deep Caves | Found Zio. Weapon Casing 11882 | -7/Deep Caves | Found Zio. Heavy Carapace 12069 | -7/Deep Caves | Discovered new exit (range 6) 12440 | -7/Deep Caves | Spotted as-46469 12472 | -7/Deep Caves | Destroyed as-46469 12476 | -7/Deep Caves | Found GOLEM Unit 12515 | -7/Deep Caves | Spotted as-99234 12601 | -7/Deep Caves | Destroyed as-99234 12601 | -7/Deep Caves | Core integrity fell below 50% 12623 | -7/Deep Caves | Triggered Deep Caves wall 12623 | -7/Deep Caves | Spotted AS-52555 12623 | -7/Deep Caves | Spotted AS-55745 12626 | -7/Deep Caves | Exposed GOLEM chamber 12672 | -7/Deep Caves | Destroyed 32 combat bots 12687 | -7/Deep Caves | Found GOLEM Unit 12693 | -7/Deep Caves | Core integrity fell below 20% 12695 | -7/Deep Caves | Found GOLEM Unit 12698 | -7/Deep Caves | Destroyed by as-62103 with Assembled P-sword Last Messages --------------- 12675_ as-34448 released from Mobile Assembly Unit. 12677_ Penetrated by Slug. 12678_ Arm. Huge Wheel destroyed. 12679_ Slug penetrates as-18226. 12682_ Penetrated by Slug. 12683_ A GOLEM Unit tumbles out of the Wall Chamber. 12683_ Med. Reactive Plating destroyed. 12684_ Slug penetrates as-18226. 12685_ as-62103 released from Mobile Assembly Unit. 12685_ Med. Reactive Plating destroyed. 12687_ Acquired GOLEM Unit. 12688_ as-34448 knocked back. 12688_ Core Analyzer destroyed. 12691_ as-32835 destroyed. 12692_ A GOLEM Unit tumbles out of the Wall Chamber. 12695_ Knocked back. 12695_ Acquired GOLEM Unit. 12697_ GOLEM Unit beginning Asb. Alloy Leg integration. 12698_ Slammed into as-51697. 12698_ Arm. Huge Wheel destroyed. Map ----- +----------------------------------------------------+ | ?????????"" ?? #?????# | | ????????? ## #?????## | | ????????" # #??????## | | ????????" ???????? | | ????????# ???????? | | ????????"" ????????? | | ????????" #????????? | | ????????" ?????????? | | ????????" * #####?????? | | ????????" ##" #?????? | | ??????### == ###%####??? | | ??""""" # #??? | | ??" ####??? | | ??" = ###??? | | ??" ] #??? | | ??" ###??? | | ??" ##???? | | ??" #???? | | ??" #???? | | ??""""" [ #???? | | ??????### = ] #???? | | ????????" /M/ #???? | | ????????" M= #???? | | ??????#""G =g #???? | | ??????#a"a M ##??? | | ??????#"@aa / / #### | | ???????##a ## | | ????????" ! ## | | ????????" ! !! ## | | ????????" ! | | ????????""" | | ????????" | | ?????????" #### | | ????????" b #??? | | ?????????" ##??? | | ????????" #%# #???? | | ????????" #### ## ## ##???? | | ????????""" ###??# ## ####????? | | ??????????? ????#??# #???????? | | ???????????####???????###???????? | | | | | | | | | | | | | | | | | | | | | +----------------------------------------------------+ Best States ------------- Heat Dissipation 61 Energy Generation 17 Energy Capacity 300 Matter Stores 300 Matter Capacity 300 Sight Range 16 Terrain Scan Density 10 Armor Coverage 1425 Resistance: KI 30 Resistance: TH 10 Weapon Shielding 100 Evasion (%) 42 Core Analysis 6 Recoil Reduction 2 Offensive Hacking 10 Trap Extractor Capacity 6 Item Schematics ----------------- Hvy. Rocket Launcher | -7/Factory | Scanalyzed Arm. Huge Wheel | -7/Factory | Scanalyzed Weapon Cycler | -7/Zion | Archive Thermic Laser | -7/Zion | Archive Med. Reactive Plating | -7/Zion | Archive Mak. Hover Unit | -7/Zion | Archive Mak. Leg | -7/Zion | Archive Arm. Leg | -7/Zion | Archive Adv. ECM Suite | -7/Zion | Archive Imp. Launcher Guidance Computer | -7/Zion | Archive Hyp. Coil Gun | -7/Zion | Archive Mak. Axe | -7/Zion | Archive Hvy. Machine Gun | -7/Zion | Archive Imp. Thermal Generator | -7/Zion | Archive Mak. Transmission Jammer | -7/Zion | Archive Mak. Flight Unit | -7/Zion | Archive Robot Schematics ------------------ M-28 Smith | -7/Zion | Archive S-27 Virus | -7/Zion | Archive L-41 Fighter | -7/Zion | Archive D-83 Annihilator | -7/Zion | Archive Fabricated ------------ Lrn. Proton Cannon | x1 | -7/Factory | Preloaded Arm. Huge Wheel | x2 | -7/Factory Alien Tech Used ----------------- None Achievements -------------- None Challenges ------------ None Game ------ Seed MakeshiftSupercompositeRay Manual? 0 Play Time 01:20:27 Cumulative 129.3 hours Start 2024.01.22 @ 14:36:19 End 2024.01.22 @ 22:45:13 Sessions 3 Manual Loads 0 Difficulty Rogue Special Mode None Game No. 127 Rogue 127 Adventurer 0 Explorer 0 Win Type - Total 2 Types 2/0/0/0/0/0/0/0/0 Lore% 56 Gallery% 62 Achievement% 53 Wizard Run 0 Options --------- ASCII 0 Keyboard 1 Movement Numpad Keybinds 0 Fullscreen 2 Font 18/SmallcapsGlow Map View 76x50 Tactical HUD 1 Map Filters NONE Filters NONE Steam 1 RUN: 0a1b1047-e2cc-4d51-a1dd-c6bd5da9a448